{"text_format":"3","workbook":"xlsx","n_sheets":7,"sheets":["Etusivu","Laskelma","Lähivanhemman perhe","Elatusvelvollisen perhe","Asumismenojen erittely","Vakiot","Muutoshistoria"],"not_rendered":{"defined_names":19,"comments":3},"read":"whole","date_system":"1900"}

{"sheet":"Etusivu","index":0,"n_rows":27,"n_cols":3,"rows_kept":27}
[]
[]
[null,"ELIAS"]
[]
[null,"ALOITA"]
[]
[null,"Elatusavun laskenta OM:n ohjeiden mukaan"]
[]
[]
[null,"Versio 2.0    ","2007-11-27"]
[]
[null,"Laatinut julkinen oikeusavustaja Martin Melin"]
[null,"Sähköposti etunimi.sukunimi (at) oikeus.fi"]
[]
[null,"Laskentasivuille on myös lisätty kommentteja tiettyihin kohtiin. Kommentit näkyvät pieninä punaisina kolmioina ko. soluissa. Teksti tulee näkyviin kun viedään hiiriosoitin solun päälle."]
[]
[null,"Laskentamalli on vapaasti käytettävissä käyttäjän omalla"]
[null,"vastuulla. Mikäli sitä muutetaan muutettu versio on laitettava"]
[null,"vastaavalla tavalla vapaasti käyttöön. Oikeusministeriö"]
[null,"ei ole vastuussa laskurin ylläpidosta eikä sisällöstä."]
[null,"Kaikki kommentit lähetettävä Martin Melinille."]
[]
[]
[]
[null,"Luettelo muutoksista ja päivityksistä"]
[]
[null,"Konvertoitu Exceliin marraskuussa 2017, versio julkaistu tammikuussa 2019"]

{"sheet":"Laskelma","index":1,"n_rows":46,"n_cols":6,"rows_kept":46,"merged":[[47,1,51,5]]}
["Yhteenveto – Elatusavun määrä",{"$nulls":4},"Liite 1."]
[]
[null,"Elatuskyky",null,"Elatusvelvollinen",null,"Lähivanhempi"]
[{"$nulls":3},"Erittelyyn ...",null,"Erittelyyn ..."]
[null,null,"Tulot (myös lapsilisäkorotus)",{"$f":"'Elatusvelvollisen perhe'!E10+'Elatusvelvollisen perhe'!E13","v":{"v":0,"d":"0.00"}},null,{"$f":"'Lähivanhemman perhe'!E10+'Lähivanhemman perhe'!E13","v":{"v":0,"d":"0.00"}}]
[null,null,"Ennakkopidätys",{"$f":"'Elatusvelvollisen perhe'!E11","v":{"v":0,"d":"0.00"}},null,{"$f":"'Lähivanhemman perhe'!E11","v":{"v":0,"d":"0.00"}}]
[null,null,"Nettotulot",{"$f":"D5-D6","v":{"v":0,"d":"0.00"}},null,{"$f":"F5-F6","v":{"v":0,"d":"0.00"}}]
[]
[null,null,"Huomioitavat asumiskustannukset",{"$f":"'Elatusvelvollisen perhe'!E37","v":{"v":400,"d":"400.00"}},null,{"$f":"'Lähivanhemman perhe'!E49","v":{"v":400,"d":"400.00"}}]
[null,null,"Perheen lasten lukumäärä",null,null,{"$f":"'Lähivanhemman perhe'!D27","v":0}]
[null,null,"Elatuksensaajien osuus ",null,null,{"$f":"IF(F9=0,0,IF(F10>0,VLOOKUP(F10,Asumis_osuudet,3)*F9*'Lähivanhemman perhe'!D23,0))","v":{"v":0,"d":"0.00"}}]
[null,null,"Vanhemman osuus",{"$f":"D9","v":{"v":400,"d":"400.00"}},null,{"$f":"F9-F11","v":{"v":400,"d":"400.00"}}]
[null,null,"Omat elinkustannukset",{"$f":"IF('Elatusvelvollisen perhe'!E5=\"\",Vakiot!E13,Vakiot!E14*2*'Elatusvelvollisen perhe'!E7)","v":{"v":614,"d":"614.00"}},null,{"$f":"IF('Lähivanhemman perhe'!E5=\"\",Vakiot!E13,Vakiot!E14*2*'Lähivanhemman perhe'!E7)","v":{"v":614,"d":"614.00"}}]
[null,null,"Muu elatusvastuu",{"$f":"'Elatusvelvollisen perhe'!E21+'Elatusvelvollisen perhe'!E22","v":{"v":0,"d":"0.00"}},null,{"$f":"'Lähivanhemman perhe'!E24+'Lähivanhemman perhe'!E25+'Lähivanhemman perhe'!E28-'Lähivanhemman perhe'!E20","v":{"v":0,"d":"0.00"}}]
[null,null,"Muut kustannukset",{"$f":"'Elatusvelvollisen perhe'!E39","v":{"v":0,"d":"0.00"}},null,{"$f":"'Lähivanhemman perhe'!E51","v":{"v":0,"d":"0.00"}}]
[null,null,"Kustannukset yhteensä",{"$f":"SUM(D12:D15)","v":{"v":1014,"d":"1,014.00"}},null,{"$f":"SUM(F12:F15)","v":{"v":1014,"d":"1,014.00"}}]
[]
[null,null,"Elatuskykyperuste",{"$f":"D7-D16","v":{"v":-1014,"d":"-1,014.00"}},null,{"$f":"F7-F16","v":{"v":-1014,"d":"-1,014.00"}}]
[{"$nulls":3},{"$f":"IF(D18<0,0,D18)","v":{"v":0,"d":"0.00"}},null,{"$f":"IF(F18<0,0,F18)","v":{"v":0,"d":"0.00"}}]
[null,null,"Suhteellinen peruste",{"$f":"IF(D19=0,0,D19/(D19+F19))","v":{"v":0,"d":"0.00%"}},null,{"$f":"1-D20","v":{"v":1,"d":"100.00%"}}]
[]
[null,"Elatuksensaajien lukumäärä ja niiden nettokustannus",{"$nulls":3},{"$f":"'Lähivanhemman perhe'!D23","v":0}]
[]
[null,null,"Taulukkomenot",null,null,{"$f":"'Lähivanhemman perhe'!E23","v":{"v":0,"d":"0.00"}}]
[null,null,"Erityiskustannukset",null,null,{"$f":"'Lähivanhemman perhe'!E31","v":{"v":0,"d":"0.00"}}]
[null,null,"Osuus asumismenoista",null,null,{"$f":"IF(F11<=0,0,F11)","v":{"v":0,"d":"0.00"}}]
[null,null,"Lapsilisät",null,null,{"$f":"IF('Lähivanhemman perhe'!E18=\"\",0,'Lähivanhemman perhe'!E18)","v":{"v":0,"d":"0.00"}}]
[null,null,"Huomioitavat tulot",null,null,{"$f":"'Lähivanhemman perhe'!E19","v":{"v":0,"d":"0.00"}}]
[null,null,"Menot yhteensä",null,null,{"$f":"SUM(F24:F26)-(F27+F28)","v":{"v":0,"d":"0.00"}}]
[]
[null,"Elatusvelvollisuuden jakaminen"]
[]
[null,null,"Osuus",{"$f":"D20","v":{"v":0,"d":"0.00%"}},null,{"$f":"F20","v":{"v":1,"d":"100.00%"}}]
[null,null,"Euromääräinen osuus",{"$f":"IF(D18<0,0,IF(F29*D33>=D18,D18,F29*D33))","v":{"v":0,"d":"0.00"}},null,{"$f":"F29-D34","v":{"v":0,"d":"0.00"}}]
[null,null,"Luonapitovähennys yhteensä",{"$f":"IF(D34=0,0,IF(F29=0,0,IF(D18+F18<F29,(D18+F18)/F29*'Elatusvelvollisen perhe'!E29,'Elatusvelvollisen perhe'!E29)))","v":{"v":0,"d":"0.00"}}]
[null,null,"Elatusapu yhteensä",{"$f":"IF((D34-D35)<=0,0,D34-D35)","v":{"v":0,"d":"0.00"}}]
[null,null,"Per lapsi keskimäärin",{"$f":"IF(D36<=0,0,D36/F22)","v":{"v":0,"d":"0.00"}}]
[]
[null,"Kohtuullisuusarvioinnin perusteet"]
[]
[null,null,"Elatuskykyperuste",{"$f":"D19","v":{"v":0,"d":"0.00"}},null,{"$f":"F19","v":{"v":0,"d":"0.00"}}]
[null,null,"Ei huomioidut asumismenot",{"$f":"IF('Elatusvelvollisen perhe'!E32>'Elatusvelvollisen perhe'!E36,('Elatusvelvollisen perhe'!E32-'Elatusvelvollisen perhe'!E36)*'Elatusvelvollisen perhe'!E7,0)","v":{"v":0,"d":"0.00"}},null,{"$f":"IF('Lähivanhemman perhe'!E44>'Lähivanhemman perhe'!E48,('Lähivanhemman perhe'!E44-'Lähivanhemman perhe'!E48)*'Lähivanhemman perhe'!E7,0)","v":{"v":0,"d":"0.00"}}]
[null,null,"Elatusvelvollisuus",{"$f":"IF(D36<0,0,D36)","v":{"v":0,"d":"0.00"}},null,{"$f":"IF(F34<0,0,F34)","v":{"v":0,"d":"0.00"}}]
[null,null,"Erotus",{"$f":"D41-D43-D42","v":{"v":0,"d":"0.00"}},null,{"$f":"F41-F43-F42","v":{"v":0,"d":"0.00"}}]
[]
["Huomautuksia"]

{"sheet":"Lähivanhemman perhe","index":2,"n_rows":54,"n_cols":9,"rows_kept":54}
["Lähivanhemman perhe – Elatuslaskenta",{"$nulls":3},"laskelmaan",{"$nulls":3},"Liite 2."]
[]
[null,"Perustiedot"]
[null,null,"Yksinhuoltaja (Kyllä/Ei)",null,"Kyllä"]
[null,null,"Osuus yhteisistä menoista (oletus)",null,{"$f":"IF(LEFT(E4,1)=\"e\",0.5,\"\")","v":""}]
[null,null,"Poikkeava osuus %",null,"   "]
[{"$nulls":4},{"$f":"IF(E5<>\"\",IF(ISNUMBER(E6),E6,E5),1)","v":{"v":1,"d":"100.00%"}}]
[]
[null,"Vanhemman tulot"]
[null,null,"Bruttotulot"]
[null,null,"Ennakkopidätys"]
[null,null,"Lapsilisää saavien määrä yhteensä"]
[null,null,"Kaikki lapsilisäkorotukset",null,{"$f":"IF(E4=\"Kyllä\",IF(ISNUMBER(E12),E12*Vakiot!E43,\"0\"),\"0\")","v":"0"}]
[null,null,"Tulot yhteensä",null,{"$f":"E10-E11+E13","v":{"v":0,"d":"0.00"}}]
[]
[null,"Lasten tulot"]
[null,null,"Elatuksensaajista lapsilisää saavien määrä"]
[null,null,"Elatuksensaajien osuus lapsilisistä",null,{"$f":"IF(ISNUMBER(E17),IF(ISNUMBER(E12),IF(E12>5,Vakiot!G48/6*E17,VLOOKUP(E12,Lapsilisat,5)/E12*E17),\"\"),\"\")","v":""}]
[null,null,"Elatuksensaajien huomioitavat tulot"]
[null,null,"Muiden elätettävien elatusapu tai elatustuki",null,{"v":0,"d":"0.00"}]
[]
[null,"Lapset taloudessa – lukumäärät, iät ja vakiomenot",{"$nulls":4},7,13,18]
[null,null,"Elatuksensaajat",{"$f":"SUM(G23:I23)","v":0},{"$f":"IF(G23>0,VLOOKUP(G$22,Lasten_kustannukset,3)*G23,0)+IF(H23>0,VLOOKUP(H$22,Lasten_kustannukset,3)*H23,0)+IF(I23>0,VLOOKUP(I$22,Lasten_kustannukset,3)*I23,0)","v":{"v":0,"d":"0.00"}}]
[null,null,"Yhteisiä uuden puolison kanssa – osuus",{"$f":"SUM(G24:I24)","v":0},{"$f":"(IF(G24>0,VLOOKUP(G$22,Lasten_kustannukset,3)*G24,0)+IF(H24>0,VLOOKUP(H$22,Lasten_kustannukset,3)*H24,0)+IF(I24>0,VLOOKUP(I$22,Lasten_kustannukset,3)*I24,0))*E7","v":{"v":0,"d":"0.00"}}]
[null,null,"Lähivanhemman muut lapset",{"$f":"SUM(G25:I25)","v":0},{"$f":"IF(G25>0,VLOOKUP(G$22,Lasten_kustannukset,3)*G25,0)+IF(H25>0,VLOOKUP(H$22,Lasten_kustannukset,3)*H25,0)+IF(I25>0,VLOOKUP(I$22,Lasten_kustannukset,3)*I25,0)","v":{"v":0,"d":"0.00"}}]
[null,null,"Muut henkilöt esim. puolison lapset"," "]
[null,null,"Yhteensä",{"$f":"SUM(D23:D26)","v":0},{"$f":"SUM(E23:E26)","v":{"v":0,"d":"0.00"}}]
[null,null,"Elatusapu muualle asuvalle",null,{"v":0,"d":"0.00"}]
[]
[null,"Elatuksen saajien erityismenot – erittely"]
[null,null,"Erityismenot yhteensä",null,{"$f":"SUM(E34:E41)","v":{"v":0,"d":"0.00"}}]
[]
[null,null,"Selitys ja määrä"]
{"$rows_empty":9}
[null,"Asumismenot ja muut menot"]
[null,null,"Todelliset asumismenot erittelyn mukaan",">>>",{"$f":"'Asumismenojen erittely'!E4","v":{"v":0,"d":"0.00"}}]
[null,null,"Laskennallinen vuokrameno",null,{"$f":"IF(E5=\"\",((D27)*Vakiot!E40+Vakiot!E39)*Vakiot!E38,((D27+1)*Vakiot!E40+Vakiot!E39)*Vakiot!E38)","v":{"v":400,"d":"400.00"}}]
[null,null,"Asumismenot – olettamus",null,{"$f":"IF(E44=0,E45,IF(E44>E45,E45,E44))","v":{"v":400,"d":"400.00"}}]
[null,null,"Poikkeavat asumismenot"]
[{"$nulls":4},{"$f":"IF(ISNUMBER(E47),E47,E46)","v":{"v":400,"d":"400.00"}}]
[null,null,"Lähivanhemman osuus",null,{"$f":"E48*E7","v":{"v":400,"d":"400.00"}}]
[]
[null,null,"Lähivanhemman muut menot"]
[]
[{"$nulls":4},"Ei"]
[{"$nulls":4},"Kyllä"]

{"sheet":"Elatusvelvollisen perhe","index":3,"n_rows":43,"n_cols":9,"rows_kept":43}
["Elatusvelvollisen perhe – Elatuslaskenta",{"$nulls":3},"laskelmaan ...",{"$nulls":3},"Liite 3."]
[]
[null,"Perustiedot"]
[null,null,"Yksin/Yksinhuoltaja (Kyllä/Ei)",null,"Kyllä"]
[null,null,"Osuus yhteisistä menoista (oletus)",null,{"$f":"IF(LEFT(E4,1)=\"e\",0.5,\"\")","v":""}]
[null,null,"Poikkeava osuus %"]
[{"$nulls":4},{"$f":"IF(E5<>\"\",IF(ISNUMBER(E6),E6,E5),1)","v":{"v":1,"d":"100.00%"}}]
[]
[null,"Elatusvelvollisen tulot"]
[null,null,"Bruttotulot"]
[null,null,"Ennakkopidätys"]
[null,null,"Lapsilisää saavien määrä yhteensä"]
[null,null,"Kaikki lapsilisäkorotukset",null,{"$f":"IF(E4=\"Kyllä\",IF(ISNUMBER(E12),E12*Vakiot!E43,0),0)","v":{"v":0,"d":"0.00"}}]
[null,null,"Tulot yhteensä",null,{"$f":"E10-E11+E13","v":{"v":0,"d":"0.00"}}]
[]
[null,"Lapset taloudessa – lukumäärät, iät,vakiomenot ja tulot",{"$nulls":4},7,13,18]
[null,null,"Yhteisiä uuden puolison kanssa – osuus",{"$f":"SUM(G17:I17)","v":0},{"$f":"(IF(G17>0,VLOOKUP(G$16,Lasten_kustannukset,3)*G17,0)+IF(H17>0,VLOOKUP(H$16,Lasten_kustannukset,3)*H17,0)+IF(I17>0,VLOOKUP(I$16,Lasten_kustannukset,3)*I17,0))*E7","v":{"v":0,"d":"0.00"}}]
[null,null,"Elatusvelvollisen muut lapset",{"$f":"SUM(G18:I18)","v":0},{"$f":"IF(G18>0,VLOOKUP(G$16,Lasten_kustannukset,3)*G18,0)+IF(H18>0,VLOOKUP(H$16,Lasten_kustannukset,3)*H18,0)+IF(I18>0,VLOOKUP(I$16,Lasten_kustannukset,3)*I18,0)","v":{"v":0,"d":"0.00"}}]
[null,null,"Elatusvelvollisen muiden lasten tulot",null,{"v":0,"d":"0.00"}]
[null,null,"Muut henkilöt esim. puolison lapset"]
[null,null,"Yhteensä",{"$f":"SUM(D17:D20)","v":0},{"$f":"SUM(E17:E18)-E19","v":{"v":0,"d":"0.00"}}]
[null,null,"Elatusapu muualle asuvalle",null,{"v":0,"d":"0.00"}]
[]
[null,null,"Luonapitovuorokaudet (9,12,15)",null,{"$f":"IF(ISNUMBER(D24),IF(D24>8,SUM(E25:E27),0),0)","v":{"v":0,"d":"0.00"}}]
[{"$nulls":4},{"$f":"IF('Lähivanhemman perhe'!G23>0,VLOOKUP(D$24,Lasten_luonapito,3)*'Lähivanhemman perhe'!G23,0)","v":{"v":0,"d":"0.00"}}]
[{"$nulls":4},{"$f":"IF('Lähivanhemman perhe'!H23>0,VLOOKUP(D$24,Lasten_luonapito,4)*'Lähivanhemman perhe'!H23,0)","v":{"v":0,"d":"0.00"}}]
[{"$nulls":4},{"$f":"IF('Lähivanhemman perhe'!I23>0,VLOOKUP(D$24,Lasten_luonapito,5)*'Lähivanhemman perhe'!I23,0)","v":{"v":0,"d":"0.00"}}]
[null,null,"Poikkeava luonapitovähennys"]
[{"$nulls":4},{"$f":"IF(ISNUMBER(E28),E28,E24)","v":{"v":0,"d":"0.00"}}]
[]
[null,"Asumismenot ja muut menot"]
[null,null,"Todelliset asumismenot erittelyn mukaan",">>>",{"$f":"'Asumismenojen erittely'!E27","v":{"v":0,"d":"0.00"}}]
[null,null,"Laskennallinen vuokrameno",null,{"$f":"IF(E5=\"\",((D21)*Vakiot!E40+Vakiot!E39)*Vakiot!E38,((D21+1)*Vakiot!E40+Vakiot!E39)*Vakiot!E38)","v":{"v":400,"d":"400.00"}}]
[null,null,"Asumismenot – olettamus",null,{"$f":"IF(E32=0,E33,IF(E32>E33,E33,E32))","v":{"v":400,"d":"400.00"}}]
[null,null,"Poikkeavat asumismenot"]
[{"$nulls":4},{"$f":"IF(ISNUMBER(E35),E35,E34)","v":{"v":400,"d":"400.00"}}]
[null,null,"Elatusvelvollisen osuus",null,{"$f":"E36*E7","v":{"v":400,"d":"400.00"}}]
[]
[null,null,"Elatusvelvollisen muut menot"]
[]
[]
[{"$nulls":4},"Ei"]
[{"$nulls":4},"Kyllä"]

{"sheet":"Asumismenojen erittely","index":4,"n_rows":31,"n_cols":8,"rows_kept":31}
["Asumismenojen erittely – Elatuslaskenta",{"$nulls":6},"Liite 4."]
[]
[null,"Lähivanhemman asumismenot"]
[null,"<<<","Asumismenot yhteensä",null,{"$f":"SUM(E9:E24)-E6","v":{"v":0,"d":"0.00"}}]
[]
[null,null,"Asumistuki"]
[]
[null,null,"Selitys",null,"Euromäärä"]
{"$rows_empty":17}
[null,"Elatusvelvollisen asumismenot"]
[null,"<<<","Asumismenot yhteensä",null,{"$f":"SUM(E32:E47)-E29","v":{"v":0,"d":"0.00"}}]
[]
[null,null,"Asumistuki"]
[]
[null,null,"Selitys",null,"Euromäärä"]

{"sheet":"Vakiot","index":5,"n_rows":48,"n_cols":9,"rows_kept":48}
["Vakiot – elatusvelvollisuuslaskenta"]
[]
[null,"Lasten yleiskustannukset"]
[]
[null,null,"Ikä",null,"Euromäärä"]
[null,null,7,null,305]
[null,null,13,null,356]
[null,null,18,null,480]
[]
[null,"Vanhempien yleiset elinkustannukset"]
[]
[null,null,"Aviosääty",null,"Euromäärä"]
[null,null,"Yksinhuoltaja",null,614]
[null,null,"Avio/avoliitto",null,517]
[]
[null,"Luonapitovähennykset"]
[{"$nulls":7},"Euromäärä"]
[{"$nulls":4},"Vrk",null,null,"Ikäjakautuma"]
[{"$nulls":6},7,13,18]
[{"$nulls":4},7,1,0,0,0]
[{"$nulls":4},9,2,{"v":32,"d":"32.00"},{"v":34.5,"d":"34.50"},{"v":38,"d":"38.00"}]
[{"$nulls":4},12,3,{"v":43,"d":"43.00"},{"v":46.5,"d":"46.50"},{"v":53,"d":"53.00"}]
[{"$nulls":4},15,4,{"v":56.5,"d":"56.50"},{"v":60.5,"d":"60.50"},{"v":66,"d":"66.00"}]
[]
[null,"Asumismenojen osuusperusteet"]
[]
[null,null,"Lkm",null,"Osuus",null,"Osuus yhteensä"]
[null,null,1,null,{"v":0.23,"d":"23.00%"},null,{"$f":"C28*E28","v":{"v":0.23,"d":"23.00%"}}]
[null,null,2,null,{"v":0.19,"d":"19.00%"},null,{"v":0.38,"d":"38.00%"}]
[null,null,3,null,{"v":0.16,"d":"16.00%"},null,{"v":0.48,"d":"48.00%"}]
[null,null,4,null,{"v":0.14,"d":"14.00%"},null,{"v":0.56,"d":"56.00%"}]
[null,null,5,null,{"v":0.12,"d":"12.00%"},null,{"v":0.6,"d":"60.00%"}]
[null,null,6,null,{"v":0.11,"d":"11.00%"},null,{"v":0.66,"d":"66.00%"}]
[null,null,7,null,{"v":0.1,"d":"10.00%"},null,{"v":0.7000000000000001,"d":"70.00%"}]
[]
[null,"Laskennallisen vuokran perusteet"]
[]
[null,null,"Neliöhinta",null,10]
[null,null,"Neliömäärä 1.",null,40]
[null,null,"Neliömäärä n.",null,20]
[]
[null,"Lapsilisät"]
[null,null,"Korotukset",null,{"v":63.3,"d":"63.30"}]
[null,null,1,null,94.88,null,{"$f":"E44","v":94.88}]
[null,null,2,null,104.84,null,{"$f":"G44+E45","v":199.72}]
[null,null,3,null,133.79,null,{"$f":"G45+E46","v":333.51}]
[null,null,4,null,163.24,null,{"$f":"G46+E47","v":496.75}]
[null,null,5,null,182.69,null,{"$f":"G47+E48","v":679.44}]

{"sheet":"Muutoshistoria","index":6,"n_rows":30,"n_cols":3,"rows_kept":30}
[]
[null,"Muutoshistoria – Elias 2"]
[]
[null,"Täysin uusi versio – pohjautuu versioon 1.0 mutta paljon rakenteellisia muutoksia","2007-09-01"]
[null,"Mm. korjattu asumismenojen osuuden laskenta laskelmassa (prosentti kaikki vanhemman lapsen mukaan ja osuus elatuksensaajien määrän mukaan), korjattu luonapitovähennyksen vienti laskelmaan, lisätty kaava joka ottaa huomioon mikäli laskennallinen elatusapu ylittää elatusmaksukykyä. Lisätty kenttä asumistukea varten asumiskustannusten erittelyihin. Julkaistu.","2008-01-16"]
[null,"Kehitetty laskuri siten että Laskelma-sivuun on lisätty tekstikehys huomautuksia yms varten. Mikäi tekee useita versioita samassa asiassa voidaan niitä pitää erillään näiden huomautuksien avulla. Elias laskee nyt lapsilisäerät Vakioihin lisätyn taulukkon mukaan. Tarkista solukommentteissa olevat ohjeet.","2008-01-28"]
[null,"Korjattu asumismenojen littyviä suojasvirheitä. Nyt voi syötä asumistuen määriä erittelysivulle.","2008-02-06"]
[null,"Korjattu siten että puolisoiden väliset elatussuhteet toimivat oikein myös elinkustunnusten osalta. On nyt korkeintaan 840 euro eli 100 % (420 + 420). Laskelma-sivun huomatuskenttä korjattu toimivaksi. Tekstikorjauksia.","2008-02-07"]
[null,"Korjattu luonapitovähennysten laskenta","2008-02-08"]
[null,"Korjattu lasten osuuden laskeminen asumiskustannnuksista. Julkaistu ruotsinkielinen versio.","2008-04-02"]
[null,"Korjattu lapsilisälaskenta niissä tapauksissa missä vanhemmat eivät saa korotuksia koska eivät ole yksinhuoltajia eli elävät uudessa suhteessa.","2008-05-15"]
[null,"Korjattu lapsilisän korotuslaskenta elatusvelvollisen osalta. Edellinen korjauksen korjaus!","2008-09-02"]
[null,"Edellisen korjauksen korjaus eli sama virhe oli myös laskelmassa","2008-09-03"]
[null,"Kehitetty ulkoasua sekä lisätty lapsilisien uudet määrät 1.1.2009 alkaen","2008-12-04"]
[null,"HUOM! Lisätty kenttä elatusvelvollisen muiden lasten elatusapua varten","2009-03-16"]
[null,"Korjaus. Lähivanhemman muiden lasten saaman elatusavun huomioiminen laskelmasivulla korjattu","2009-06-01"]
[null,"Vakiomäärien muuttaminen korotuksien mukaan 1.1.2011 (lasten yleiskustannukset, vanhempien elinkustannukset sekä luonapitovähennykset)","2010-12-27"]
[null,"Korjattu lapsilisäkorotuksen määrä sekä tietyt ohjetekstit","2011-12-22"]
[null,"Lapsilisien uudet määrät 1.2.2012","2012-01-16"]
[null,"Vakiomäärien muuttaminen korotuksien mukaan 1.1.2012 (lasten yleiskustannukset, vanhempien elinkustannukset sekä luonapitovähennykset)","2012-02-20"]
[null,"Vakiomäärien muuttaminen korotuksien mukaan 1.1.2013 (lasten yleiskustannukset, vanhempien elinkustannukset sekä luonapitovähennykset)","2013-01-16"]
[null,"Vakiomäärien muuttaminen korotuksien mukaan 1.1.2014 (lasten yleiskustannukset, vanhempien elinkustannukset sekä luonapitovähennykset)","2014-01-14"]
[null,"Vakiomäärien päivittäminen 1.1.2015 (lapsilisien määrät sekä lasten yleiskustannukset, vanhempien elinkustannukset sekä luonapitovähennykset)","2015-01-05"]
[null,"Korjattu virhe lapsilisien laskennassa jos enemmän kuin 5 lasta josta vähemmän kuin viisi elatuksensaajaa","2015-01-28"]
[null,"Vakiomäärien päivittäminen 1.1.2016 (lasten yleiskustannukset ja vanhempien elinkustannukset)","2016-02-09"]
[null,"Vakiomäärien päivittäminen 1.1.2017 (lasten yleiskustannukset ja vanhempien elinkustannukset sekä lapsilisät)","2017-01-11"]
[null,"Vakiomäärien päivittäminen 1.1.2018 (lasten yleiskustannukset ja vanhempien elinkustannukset sekä lapsilisät)","2018-01-08"]
[null,"Lisätty toiminnallisuutta koskien luonapitovähennyksen laskenta kun vanhempien elatuskyky alittaa lapsen/lasten tarvetta (tarkennettu 14.5.2018 ja 7.6.2018)","2018-04-09"]
[null,"Vakiomäärien päivittäminen 1.1.2019 (lasten yleiskustannukset ja vanhempien elinkustannukset)","2019-01-23"]
[null,"Vakiomäärien päivittäminen 1.1.2020 (lasten yleiskustannukset ja vanhempien elinkustannukset sekä lapsilisät)","2019-01-17"]